bitfinex/quotes_BTCUSD_20240703
["timestamp","ask_amount","ask_price","bid_price","bid_amount"]
[1720028456307,1.61259747,60406.0,60405.0,0.48316146]
[1720028456517,1.61259747,60406.0,60405.0,0.51116146]
[1720028456518,1.28150547,60406.0,60405.0,0.51116146]
[1720028456705,1.28050547,60406.0,60405.0,0.50816146]
[1720028457136,1.28050547,60406.0,60405.0,0.47916146]
[1720028457349,1.28050547,60406.0,60405.0,0.47716146]
[1720028457583,1.28021174,60406.0,60405.0,0.47716146]
[1720028457729,1.25852827,60406.0,60405.0,0.50716146]
[1720028457934,1.28013915,60406.0,60405.0,0.50716146]
[1720028458650,1.28013915,60406.0,60405.0,0.47716146]
[1720028459037,1.28013915,60406.0,60405.0,0.50716146]
[1720028459442,1.28013915,60406.0,60405.0,0.47716146]
[1720028460176,1.28013915,60406.0,60405.0,0.50716146]
[1720028460617,1.28013915,60406.0,60405.0,0.47716146]
[1720028460757,1.28034724,60406.0,60405.0,0.50716146]
[1720028461592,0.94925524,60406.0,60405.0,0.53016146]
[1720028462412,0.61816324,60406.0,60405.0,0.53016146]
[1720028462721,0.59634427,60406.0,60405.0,0.53016146]
[1720028463072,0.61852885,60406.0,60405.0,0.53016146]
[1720028463275,0.28743685,60406.0,60405.0,0.83016146]
[1720028463483,0.26525227,60406.0,60405.0,0.83016146]
[1720028463680,0.59634427,60406.0,60405.0,0.83016146]
[1720028464088,0.26525227,60406.0,60405.0,0.83016146]
[1720028464911,0.26525227,60406.0,60405.0,1.13016146]
[1720028465303,0.26525227,60406.0,60405.0,0.83016146]
[1720028465466,0.26525227,60406.0,60405.0,1.13016146]
[1720028466092,0.26525227,60406.0,60405.0,1.12916146]
[1720028466573,0.26525227,60406.0,60405.0,1.13016146]
[1720028466772,0.26525227,60406.0,60405.0,1.12916146]
[1720028467015,0.26625227,60406.0,60405.0,1.13516146]
[1720028467218,0.101,60406.0,60405.0,1.13516146]
[1720028468718,0.001,60406.0,60405.0,1.13516146]
[1720028469363,0.001,60406.0,60405.0,1.63180846]
[1720028469585,0.001,60406.0,60405.0,2.02170846]
[1720028469708,0.001,60406.0,60405.0,2.45211175]
[1720028469910,0.00104,60414.0,60413.0,1.62205866]
[1720028470165,0.00104,60414.0,60413.0,1.30877646]
[1720028470564,0.00104,60414.0,60413.0,1.10877646]
[1720028470740,0.00104,60414.0,60413.0,1.30717646]
[1720028471064,0.00104,60414.0,60413.0,1.38163877]
[1720028471223,0.00104,60414.0,60413.0,1.35680828]
[1720028472068,0.00104,60414.0,60413.0,1.00717646]
[1720028472298,0.00104,60414.0,60413.0,1.30717646]
[1720028472443,0.00104,60414.0,60413.0,1.00717646]
[1720028473060,0.00204,60414.0,60413.0,1.32117646]
[1720028473306,0.00204,60414.0,60413.0,1.02117646]
[1720028473625,1.160711,60414.0,60413.0,0.21827646]
[1720028473871,1.2720349,60414.0,60413.0,0.1622988]
[1720028474060,1.3630349,60414.0,60413.0,0.23227646]
[1720028474673,1.3620349,60414.0,60413.0,0.23027646]
[1720028474870,1.6020839,60414.0,60413.0,0.23027646]
[1720028476277,1.59076,60414.0,60413.0,0.23027646]
[1720028476671,1.607128,60414.0,60413.0,0.23027646]
[1720028476878,1.60712547,60414.0,60413.0,0.23027646]
[1720028477190,1.60712547,60414.0,60413.0,0.23127646]
[1720028478227,1.60712547,60414.0,60413.0,0.23027646]
[1720028478439,1.60712547,60414.0,60413.0,0.21627646]
[1720028478823,1.60712547,60414.0,60413.0,0.21727646]
[1720028479254,1.60712547,60414.0,60413.0,0.21627646]
[1720028479651,1.60729469,60414.0,60413.0,0.21627646]
[1720028480092,1.60729455,60414.0,60413.0,0.21627646]
[1720028481268,1.58729455,60414.0,60413.0,0.21627646]
[1720028482788,1.57076,60414.0,60413.0,0.21627646]
[1720028482996,1.58729657,60414.0,60413.0,0.21627646]
[1720028486262,1.5872325,60414.0,60413.0,0.21627646]
[1720028487775,1.5872325,60414.0,60413.0,0.21727646]
[1720028487946,1.5872325,60414.0,60413.0,0.21827646]
[1720028489390,1.57076,60414.0,60413.0,0.21827646]
[1720028489531,1.58747004,60414.0,60413.0,0.21827646]
[1720028489868,1.57076,60414.0,60413.0,0.21827646]
[1720028490061,1.58747111,60414.0,60413.0,0.21827646]
[1720028492559,1.57076,60414.0,60413.0,0.21827646]
[1720028492803,1.59155285,60414.0,60413.0,0.21827646]
[1720028495972,1.57076,60414.0,60413.0,0.24827646]
[1720028496173,1.26098011,60414.0,60413.0,0.24827646]
[1720028496305,1.26098011,60414.0,60413.0,0.35947646]
[1720028496507,1.26098011,60414.0,60413.0,0.49237646]
[1720028499202,1.26098011,60414.0,60413.0,0.56837646]
[1720028499769,1.26098011,60414.0,60413.0,0.56837646]
[1720028500292,1.26098011,60414.0,60413.0,0.49237646]
[1720028502262,1.26098011,60414.0,60413.0,0.51537646]
[1720028502494,1.26098011,60414.0,60413.0,0.59137646]
[1720028502495,1.239711,60414.0,60413.0,0.59137646]
[1720028502698,1.26175987,60414.0,60413.0,0.51537646]
[1720028503079,1.2617599,60414.0,60413.0,0.51537646]
[1720028505579,0.9307109,60414.0,60413.0,0.51537646]
[1720028505754,0.9304133,60414.0,60413.0,0.51537646]
[1720028505968,0.908662,60414.0,60413.0,0.51537646]
[1720028506169,0.93041237,60414.0,60413.0,0.51537646]
[1720028506339,0.93041237,60414.0,60413.0,0.51630046]
[1720028508879,0.9302507,60414.0,60413.0,0.51630046]
[1720028509094,0.5992017,60414.0,60413.0,0.81630046]
[1720028509283,0.2871127,60414.0,60413.0,1.19230046]
[1720028509476,0.6181617,60414.0,60413.0,1.19230046]
[1720028510137,0.2871127,60414.0,60413.0,1.19230046]
[1720028510491,0.265524,60414.0,60413.0,1.19230046]
[1720028511540,0.1,60414.0,60413.0,1.19230046]
[1720028512150,0.1,60415.0,60414.0,0.93197766]
[1720028512433,0.1,60415.0,60414.0,1.11527646]
[1720028513443,0.165519,60416.0,60415.0,0.68597766]
[1720028513611,0.265519,60416.0,60415.0,1.11527646]
[1720028515199,0.1,60416.0,60415.0,1.11527646]
[1720028515318,0.1,60417.0,60416.0,0.93137766]
[1720028515517,0.1,60417.0,60416.0,1.19067646]
[1720028515767,0.265516,60417.0,60416.0,1.19067646]
[1720028516474,0.496417,60433.0,60432.0,0.05597766]
[1720028516618,0.5105772,60433.0,60432.0,0.21627646]
[1720028516824,1.2724672,60433.0,60432.0,0.21627646]
[1720028518161,1.29336024,60433.0,60432.0,0.21627646]
[1720028518767,1.29315238,60433.0,60432.0,0.21627646]
[1720028519163,1.29265238,60433.0,60432.0,0.21627646]
[1720028519500,1.27975934,60433.0,60432.0,0.21727646]
[1720028519627,1.28775934,60433.0,60432.0,0.21727646]
[1720028520629,1.18775934,60433.0,60432.0,0.24727646]
[1720028521038,1.18775934,60433.0,60432.0,0.21727646]
[1720028522357,1.18775934,60433.0,60432.0,0.24727646]
[1720028522539,1.28775934,60433.0,60432.0,0.21727646]
[1720028524537,1.273807,60433.0,60432.0,0.21727646]
[1720028524725,1.28716227,60433.0,60432.0,0.21727646]
[1720028525637,1.81790727,60433.0,60432.0,0.21727646]
[1720028525836,1.81790727,60433.0,60421.0,0.456224]
[1720028525837,0.939112,60422.0,60421.0,0.456224]
[1720028525967,1.13606727,60422.0,60421.0,0.6165228]
[1720028526167,1.46707227,60422.0,60421.0,0.6165228]
[1720028526362,1.79807727,60422.0,60421.0,0.6165228]
[1720028526981,1.784722,60422.0,60421.0,0.6165228]
[1720028527178,1.80826237,60422.0,60421.0,0.6165228]
[1720028527385,1.80826201,60422.0,60421.0,0.6165228]
[1720028527698,1.88426201,60422.0,60421.0,0.6165228]
[1720028527900,1.80826201,60422.0,60421.0,0.6165228]
[1720028528407,1.80830655,60422.0,60421.0,0.6165228]
[1720028528606,1.81030655,60422.0,60421.0,0.6165228]
[1720028529330,1.87183654,60422.0,60421.0,0.6165228]
[1720028529917,2.20384154,60422.0,60421.0,0.1602988]
[1720028530499,2.20544154,60422.0,60421.0,0.1602988]
[1720028530854,2.20587122,60422.0,60421.0,0.1602988]
[1720028531305,2.20168901,60422.0,60421.0,0.1602988]
[1720028531521,2.21068901,60422.0,60421.0,0.1612988]
[1720028531838,2.21968901,60422.0,60421.0,0.1612988]
[1720028532769,1.92593422,60422.0,60421.0,0.1612988]
[1720028533174,1.91693422,60422.0,60421.0,0.1602988]
[1720028533394,1.92393422,60422.0,60421.0,0.1602988]
[1720028533575,2.25493922,60422.0,60421.0,0.1602988]
[1720028534190,2.17057721,60422.0,60421.0,0.1602988]
[1720028534409,2.27581469,60422.0,60421.0,0.1602988]
[1720028535358,2.26681469,60422.0,60421.0,0.1602988]
[1720028535694,2.27481469,60422.0,60421.0,0.1602988]
[1720028537516,2.27483869,60422.0,60421.0,0.1602988]
[1720028538297,2.60584369,60422.0,60421.0,0.1602988]
[1720028538702,2.63594264,60422.0,60421.0,0.1602988]
[1720028540339,2.30333764,60422.0,60421.0,0.1602988]
[1720028540539,2.30493764,60422.0,60421.0,0.1602988]
[1720028540748,2.30469453,60422.0,60421.0,0.1602988]
[1720028541190,2.63569953,60422.0,60421.0,0.1602988]
[1720028541391,2.63601184,60422.0,60421.0,0.1612118]
[1720028541694,2.63591184,60422.0,60421.0,0.1612118]
[1720028544029,2.6346409,60422.0,60421.0,0.1612118]
[1720028544657,2.6362409,60422.0,60421.0,0.1612118]
[1720028546921,2.6363409,60422.0,60421.0,0.1612118]
[1720028547337,2.63605116,60422.0,60421.0,0.1612118]
[1720028547753,2.63605116,60422.0,60421.0,0.1613118]
[1720028550101,2.71205116,60422.0,60421.0,0.1613118]
[1720028550443,2.62757798,60422.0,60421.0,0.1613118]
[1720028550662,2.6364668,60422.0,60421.0,0.1613118]
[1720028550869,2.7124668,60422.0,60421.0,0.1613118]
[1720028552054,2.7054668,60422.0,60421.0,0.1613118]
[1720028552264,2.6974668,60422.0,60421.0,0.1613118]
[1720028552694,2.7094668,60422.0,60421.0,0.1613118]
[1720028553110,2.7204668,60422.0,60421.0,0.1623118]
[1720028553877,2.63557798,60422.0,60421.0,0.1623118]
[1720028554162,2.72023881,60422.0,60421.0,0.1623118]
[1720028554294,2.72016638,60422.0,60421.0,0.1623118]
[1720028556940,2.64256638,60422.0,60421.0,0.1623118]
[1720028557156,2.69843129,60422.0,60421.0,0.1623118]
[1720028557367,2.70003129,60422.0,60421.0,0.1623118]
[1720028557574,2.69843129,60422.0,60421.0,0.1623118]
[1720028559931,2.62243129,60422.0,60421.0,0.1623118]
[1720028560075,2.69843129,60422.0,60421.0,0.1623118]
[1720028560275,2.63557798,60422.0,60421.0,0.1623118]
[1720028560478,2.70023809,60422.0,60421.0,0.1623118]
[1720028560672,2.50343809,60422.0,60421.0,0.1623118]
[1720028563671,2.49090269,60422.0,60421.0,0.1623118]
[1720028563945,2.4284529,60422.0,60421.0,0.1624118]
[1720028564174,2.5044529,60422.0,60421.0,0.1624118]
[1720028565838,2.50474626,60422.0,60421.0,0.1624118]
[1720028566956,2.43887798,60422.0,60421.0,0.1624118]
[1720028567160,2.50471366,60422.0,60421.0,0.1624118]
[1720028567528,2.50478591,60422.0,60421.0,0.1624118]
[1720028567763,2.50638591,60422.0,60421.0,0.1624118]
[1720028568282,2.60338394,60422.0,60421.0,0.1624118]
[1720028569420,2.50638591,60422.0,60421.0,0.1624118]
[1720028573098,2.3966463,60422.0,60421.0,0.1624118]
[1720028573430,2.33073837,60422.0,60421.0,0.1624118]
[1720028573750,2.39480237,60422.0,60421.0,0.1624118]
[1720028576859,2.33073837,60422.0,60421.0,0.1624118]
[1720028577027,2.39481999,60422.0,60421.0,0.1624118]
[1720028577645,2.39481999,60422.0,60421.0,0.16237026]
[1720028577986,2.39564999,60422.0,60421.0,0.16237026]
[1720028579086,2.06464499,60422.0,60421.0,0.16237026]
[1720028579499,1.98864499,60422.0,60421.0,0.16237026]
[1720028579704,2.39564999,60422.0,60421.0,0.16237026]
[1720028580160,2.33156837,60422.0,60421.0,0.16237026]
[1720028580379,2.39550138,60422.0,60421.0,0.16237026]
[1720028580785,2.39547515,60422.0,60421.0,0.16237026]
[1720028581414,0.165524,60414.0,60413.0,0.000924]
[1720028581686,2.66337978,60414.0,60413.0,1e-06]
[1720028581903,1.98457578,60414.0,60413.0,0.1602998]
[1720028582087,2.06057578,60414.0,60413.0,0.2750998]
[1720028582227,1.98457578,60414.0,60413.0,0.46687746]
[1720028582435,1.65352678,60414.0,60413.0,0.46687746]
[1720028582636,1.67403352,60414.0,60413.0,0.46687746]
[1720028583258,1.76403352,60414.0,60413.0,0.46687746]
[1720028583457,1.77803352,60414.0,60413.0,0.46687746]
[1720028583709,1.69362,60414.0,60413.0,0.46687746]
[1720028583914,1.76306731,60414.0,60413.0,0.46687746]
[1720028584269,1.76706731,60414.0,60413.0,0.46687746]
[1720028584908,1.69106731,60414.0,60413.0,0.46687746]
[1720028585693,1.60762,60414.0,60413.0,0.46687746]
[1720028585891,1.68676345,60414.0,60413.0,0.46687746]
[1720028586701,1.67276345,60414.0,60413.0,0.46687746]
[1720028587062,1.67776345,60414.0,60413.0,0.46687746]
[1720028587367,1.67376345,60414.0,60413.0,0.46687746]
[1720028587524,1.59862,60414.0,60413.0,0.46687746]
[1720028587847,1.5933262,60414.0,60413.0,0.46687746]
[1720028588004,1.61382369,60414.0,60413.0,0.46687746]
[1720028588207,1.2632772,60414.0,60413.0,0.49687746]
[1720028588423,1.2631772,60414.0,60413.0,0.51987746]
[1720028588819,1.2630772,60414.0,60413.0,0.51987746]
[1720028589227,0.9319282,60414.0,60413.0,0.51987746]
[1720028589456,0.9318282,60414.0,60413.0,0.51987746]
[1720028589653,0.6007792,60414.0,60413.0,0.51987746]
[1720028590078,0.5977792,60414.0,60413.0,0.51987746]
[1720028590441,0.5987792,60414.0,60413.0,0.51987746]
[1720028590629,0.67698522,60414.0,60413.0,0.51987746]
[1720028591149,0.5977792,60414.0,60413.0,0.51987746]
[1720028592104,0.102,60414.0,60413.0,0.51987746]
[1720028593302,0.102,60414.0,60413.0,1.11987746]
[1720028593718,0.002,60414.0,60413.0,1.11987746]
[1720028595294,0.002,60414.0,60413.0,1.28540446]
[1720028595495,0.00103,60422.0,60421.0,0.33377766]
[1720028595817,0.00103,60422.0,60421.0,1.19307646]
[1720028596615,0.00203,60422.0,60421.0,1.19307646]
[1720028597861,0.00203,60422.0,60421.0,0.89307646]
[1720028598488,0.00203,60422.0,60421.0,0.81707646]
[1720028599041,0.00203,60422.0,60421.0,1.11707646]
[1720028599244,0.00103,60422.0,60421.0,0.81707646]
[1720028599443,0.00303,60422.0,60421.0,0.81707646]
[1720028599702,0.168532,60422.0,60421.0,0.81707646]
[1720028599859,0.499537,60422.0,60421.0,0.81707646]
[1720028600068,0.500537,60422.0,60421.0,0.83007646]
[1720028600281,0.167532,60422.0,60421.0,0.83007646]
[1720028600689,0.498537,60422.0,60421.0,0.83107646]
[1720028601036,0.498537,60422.0,60421.0,0.83007646]
[1720028602603,0.66301,60422.0,60421.0,0.50007646]
[1720028602802,0.828512,60422.0,60421.0,0.50007646]
[1720028603007,1.160517,60422.0,60421.0,0.54107646]
[1720028603377,1.159517,60422.0,60421.0,0.52807646]
[1720028603585,1.159517,60422.0,60421.0,0.49807646]
[1720028603715,1.160517,60422.0,60421.0,0.51007646]
[1720028603918,1.160517,60422.0,60421.0,0.54007646]
[1720028604492,1.159517,60422.0,60421.0,0.52907646]
[1720028604898,1.160517,60422.0,60421.0,0.54007646]
[1720028605463,1.160517,60422.0,60421.0,0.26927646]
[1720028605697,1.160517,60422.0,60421.0,0.50807646]
[1720028606434,1.160517,60422.0,60421.0,0.47807646]
[1720028606636,1.160517,60422.0,60421.0,0.50807646]
[1720028611834,1.18111845,60422.0,60421.0,0.50807646]
[1720028612536,0.85021293,60422.0,60421.0,0.50807646]
[1720028612799,0.829612,60422.0,60421.0,0.53198946]
[1720028612970,0.829612,60422.0,60421.0,0.60798946]
[1720028613130,0.830442,60422.0,60421.0,0.60798946]
[1720028615766,0.830442,60422.0,60421.0,0.53198946]
[1720028615972,0.830442,60422.0,60421.0,0.60798946]
[1720028616209,0.830542,60422.0,60421.0,0.60798946]
[1720028617363,0.85077298,60422.0,60421.0,0.60798946]
[1720028617557,0.85077186,60422.0,60421.0,0.60798946]
[1720028617687,0.830542,60422.0,60421.0,0.60798946]
[1720028618030,0.85046053,60422.0,60421.0,0.60798946]
[1720028618739,0.85046053,60422.0,60421.0,0.53198946]
[1720028618897,0.85046053,60422.0,60421.0,0.60798946]
[1720028619300,0.8504998,60422.0,60421.0,0.60798946]
[1720028619705,0.83024806,60422.0,60421.0,0.60798946]
[1720028619906,0.85049637,60422.0,60421.0,0.60798946]
[1720028621016,0.85049637,60422.0,60421.0,0.57798946]
[1720028621177,0.85049637,60422.0,60421.0,0.24018946]
[1720028621178,1.28150137,60422.0,60421.0,0.24018946]
[1720028622453,1.2878584,60422.0,60421.0,0.24018946]
[1720028623782,1.2878584,60422.0,60421.0,0.40888946]
[1720028623972,1.2878584,60422.0,60421.0,0.52388946]
[1720028625699,1.26125306,60422.0,60421.0,0.52388946]
[1720028625899,1.2879549,60422.0,60421.0,0.52388946]
[1720028627919,1.28766162,60422.0,60421.0,0.52388946]
[1720028629044,1.26095978,60422.0,60421.0,0.52388946]
[1720028629229,0.95656999,60422.0,60421.0,0.52388946]
[1720028629656,0.02964521,60422.0,60421.0,0.92288946]
[1720028629938,0.02964521,60422.0,60421.0,1.22288946]
[1720028630071,0.00303,60422.0,60421.0,1.22288946]
[1720028630289,0.168532,60422.0,60421.0,1.22288946]
[1720028631773,0.00303,60422.0,60421.0,1.22288946]
[1720028633228,0.00303,60422.0,60421.0,1.2973768]
[1720028634842,0.00303,60422.0,60421.0,1.27256437]
[1720028635195,0.00303,60422.0,60421.0,1.22288946]
[1720028635196,0.02993839,60422.0,60421.0,1.22288946]
[1720028635837,0.03017735,60422.0,60421.0,1.22288946]
[1720028636877,0.00303,60422.0,60421.0,1.27256676]
[1720028637902,0.168532,60422.0,60421.0,1.27256676]
[1720028638939,0.168532,60422.0,60421.0,1.27257331]
[1720028639875,0.168532,60422.0,60421.0,1.22288946]
[1720028641282,0.168532,60422.0,60421.0,1.29741524]
[1720028642331,0.168532,60422.0,60421.0,1.22288946]
[1720028642535,0.168532,60422.0,60421.0,1.29741524]
[1720028642897,0.168532,60422.0,60421.0,1.22288946]
[1720028644075,0.168532,60422.0,60421.0,1.14688946]
[1720028646074,0.168532,60422.0,60421.0,0.84688946]
[1720028646619,0.168532,60422.0,60421.0,1.14688946]
[1720028647237,0.168532,60422.0,60421.0,0.84688946]
[1720028647436,0.168532,60422.0,60421.0,0.89657625]
[1720028647975,0.16823793,60422.0,60421.0,0.89657682]
[1720028648319,0.16823793,60422.0,60421.0,1.19657628]
[1720028650181,0.16823793,60422.0,60421.0,0.89657628]
[1720028650607,0.16823793,60422.0,60421.0,1.19657628]
[1720028651349,0.16823793,60422.0,60421.0,0.89657595]
[1720028651546,0.16823793,60422.0,60421.0,1.19657595]
[1720028652665,0.16823793,60422.0,60421.0,0.89657595]
[1720028652834,0.16823793,60422.0,60421.0,1.19657595]
[1720028653157,0.1929752,60422.0,60421.0,1.19657595]
[1720028654330,0.1929752,60422.0,60421.0,1.14688946]
[1720028655754,0.16823793,60422.0,60421.0,1.22142533]
[1720028658001,0.16823793,60422.0,60421.0,1.14688946]
[1720028658203,0.19291686,60422.0,60421.0,1.14688946]
[1720028658385,0.16823793,60422.0,60421.0,1.14688946]
[1720028658584,0.19291686,60422.0,60421.0,1.14688946]
[1720028659181,0.19291686,60422.0,60421.0,1.22143419]
[1720028659392,0.19291686,60422.0,60421.0,1.14688946]
[1720028659604,0.19291686,60422.0,60421.0,1.22143419]
[1720028660120,0.19291686,60422.0,60421.0,1.14688946]
[1720028660351,0.19291686,60422.0,60421.0,1.22143397]
[1720028661178,0.16823793,60422.0,60421.0,1.14688946]
[1720028661315,0.19291017,60422.0,60421.0,1.22143397]
[1720028661516,0.16823793,60422.0,60421.0,1.22143397]
[1720028661776,0.1929102,60422.0,60421.0,1.22143397]
[1720028664237,0.330986,60426.0,60425.0,0.38597766]
[1720028664238,0.82746,60426.0,60425.0,0.38597766]
[1720028664462,0.92746,60426.0,60425.0,0.56927646]
[1720028666098,0.596474,60426.0,60425.0,0.56927646]
[1720028666656,0.927457,60426.0,60425.0,0.56927646]
[1720028666857,0.596474,60426.0,60425.0,0.56927646]
[1720028667707,0.928457,60426.0,60425.0,0.57727646]
[1720028668032,0.929457,60426.0,60425.0,0.58627646]
[1720028668781,0.598474,60426.0,60425.0,0.58627646]
[1720028669369,0.598474,60426.0,60425.0,0.63597372]
[1720028669777,0.929457,60426.0,60425.0,0.63597372]
[1720028671240,0.929457,60426.0,60425.0,0.58627646]
[1720028671404,0.929457,60426.0,60425.0,0.63599185]
[1720028671771,0.929457,60426.0,60425.0,0.63599206]
[1720028671973,0.929457,60426.0,60425.0,0.63589206]
[1720028673507,0.929457,60426.0,60425.0,0.28299206]
[1720028673508,1.005457,60426.0,60425.0,0.28299206]
[1720028673706,1.214357,60426.0,60425.0,0.23327646]
[1720028673917,1.54534,60426.0,60425.0,0.23327646]
[1720028674101,1.55560532,60426.0,60425.0,0.23327646]
[1720028674300,1.54534,60426.0,60425.0,0.23327646]
[1720028674503,1.55460533,60426.0,60425.0,0.22527646]
[1720028674710,1.55360533,60426.0,60425.0,0.21617646]
[1720028674950,1.54334,60426.0,60425.0,0.21607646]
[1720028675127,1.5546053,60426.0,60425.0,0.23007646]
[1720028675333,1.5546053,60426.0,60425.0,0.22997646]
[1720028675567,1.2236223,60426.0,60425.0,0.22987646]
[1720028675935,1.5556053,60426.0,60425.0,0.23987646]
[1720028676047,1.5546053,60426.0,60425.0,0.22587646]
[1720028676459,1.5546053,60426.0,60425.0,0.23487646]
[1720028676838,1.8855883,60426.0,60425.0,0.1792988]
[1720028677112,1.8855883,60426.0,60425.0,0.23487646]
[1720028677255,1.8855883,60426.0,60425.0,0.1792988]
[1720028677456,1.8855883,60426.0,60425.0,0.23487646]
[1720028678695,1.8864183,60426.0,60425.0,0.23487646]
[1720028679123,1.8104183,60426.0,60425.0,0.23487646]
[1720028679391,1.8864183,60426.0,60425.0,0.23487646]
[1720028680387,1.8104183,60426.0,60425.0,0.23487646]
[1720028680604,1.8864183,60426.0,60425.0,0.23487646]
[1720028680808,1.88959884,60426.0,60425.0,0.23487646]
[1720028681215,1.88959884,60426.0,60425.0,0.1792988]
[1720028681621,1.88959884,60426.0,60425.0,0.1793988]
[1720028682106,1.88959884,60426.0,60425.0,0.1792988]
[1720028682965,2.22058184,60426.0,60425.0,0.1793988]
[1720028683268,2.27242904,60426.0,60425.0,0.1793988]
[1720028683627,2.19642904,60426.0,60425.0,0.1793988]
[1720028683946,2.27242904,60426.0,60425.0,0.1793988]
[1720028684148,2.28274898,60426.0,60425.0,0.1793988]
[1720028684516,2.207136,60426.0,60425.0,0.1793988]
[1720028684717,2.29236906,60426.0,60425.0,0.1793988]
[1720028685517,2.29236906,60426.0,60425.0,0.1792988]
[1720028685721,2.29236906,60426.0,60425.0,0.1702988]
[1720028685935,2.29436906,60426.0,60425.0,0.1602988]
[1720028686283,2.29446906,60426.0,60425.0,0.1602988]
[1720028687010,2.29146906,60426.0,60425.0,0.1602988]
[1720028687435,2.29110671,60426.0,60425.0,0.1602988]
[1720028687595,2.29111262,60426.0,60425.0,0.1602988]
[1720028687770,2.62409562,60426.0,60425.0,0.1602988]
[1720028688636,2.54809562,60426.0,60425.0,0.1602988]
[1720028688821,2.62409562,60426.0,60425.0,0.1602988]
[1720028688996,2.62109562,60426.0,60425.0,0.1602988]
[1720028689199,2.62409562,60426.0,60425.0,0.1602988]
[1720028689610,2.62419562,60426.0,60425.0,0.1602988]
[1720028689872,2.62119562,60426.0,60425.0,0.1602988]
[1720028690025,2.61919562,60426.0,60425.0,0.1602988]
[1720028690347,2.62219562,60426.0,60425.0,0.1602988]
[1720028691410,3.52351562,60426.0,60425.0,0.1602988]
[1720028693925,3.52496178,60426.0,60425.0,0.1602988]
[1720028694109,3.52296178,60426.0,60425.0,0.1602988]
[1720028694305,3.52496178,60426.0,60425.0,0.1602988]
[1720028696775,3.52296178,60426.0,60425.0,0.1602988]
[1720028696995,3.52496178,60426.0,60425.0,0.1602988]
[1720028697209,2.542319,60426.0,60425.0,0.1602988]
[1720028697361,3.65788002,60426.0,60425.0,0.1602988]
[1720028697566,3.574572,60426.0,60425.0,0.1602988]
[1720028697772,3.65788224,60426.0,60425.0,0.1602988]
[1720028698109,3.65758896,60426.0,60425.0,0.1602988]
[1720028700312,3.65706284,60426.0,60425.0,1e-06]
[1720028700509,3.65706284,60426.0,60421.0,0.000913]
[1720028700510,2.354632,60422.0,60421.0,0.000913]
[1720028700766,2.61246883,60422.0,60421.0,0.000913]
[1720028702620,2.531632,60422.0,60421.0,0.000913]
[1720028702825,2.61330235,60422.0,60421.0,0.000913]
[1720028703700,2.61320235,60422.0,60421.0,0.000913]
[1720028703942,2.61320235,60422.0,60412.0,0.19067766]
[1720028704136,1.489743,60413.0,60412.0,0.135]
[1720028704291,1.94259218,60413.0,60412.0,0.135]
[1720028705906,1.94359218,60413.0,60412.0,0.19259166]
[1720028706107,1.94359218,60413.0,60412.0,0.141]
[1720028706316,1.94359218,60413.0,60412.0,0.19259166]
[1720028706515,1.94359218,60413.0,60412.0,0.141]
[1720028706848,1.94359218,60413.0,60412.0,0.19259166]
[1720028708008,2.01959218,60413.0,60412.0,0.3000988]
[1720028708213,2.01959218,60413.0,60412.0,0.35169046]
[1720028708418,2.01959218,60413.0,60412.0,0.3000988]
[1720028709178,2.098297,60413.0,60412.0,0.1662988]
[1720028709316,2.55930921,60413.0,60412.0,0.1662988]
[1720028709516,2.61923437,60413.0,60412.0,0.1662988]
[1720028709884,2.61924845,60413.0,60412.0,0.1662988]
[1720028710000,3.47738445,60413.0,60412.0,0.1662988]
[1720028710449,3.49793822,60413.0,60412.0,0.1662988]
[1720028710845,3.39195222,60413.0,60412.0,0.1662988]
[1720028711045,3.46795222,60413.0,60412.0,0.1672228]
[1720028711486,3.38699477,60413.0,60412.0,0.1672228]
[1720028711670,3.38699477,60413.0,60412.0,0.1612228]
[1720028711671,3.46324924,60413.0,60412.0,0.1612228]
[1720028712086,3.46824924,60413.0,60412.0,0.1612228]
[1720028712393,3.46873673,60413.0,60412.0,0.000924]
[1720028712767,3.4687426,60413.0,60412.0,0.000924]
[1720028713718,3.4688426,60413.0,60412.0,0.000924]
[1720028713911,3.3909426,60413.0,60412.0,0.000924]
[1720028714108,3.4688426,60413.0,60412.0,0.000924]
[1720028714308,3.4669426,60413.0,60412.0,0.001024]
[1720028714749,3.4688426,60413.0,60412.0,0.001024]
[1720028714871,3.4688426,60413.0,60412.0,0.001124]
[1720028714872,3.4669426,60413.0,60412.0,0.001124]
[1720028715075,3.4669426,60413.0,60412.0,0.006124]
[1720028715076,3.4679426,60413.0,60412.0,0.006124]
[1720028715581,3.46694584,60413.0,60412.0,0.006124]
[1720028715889,3.46839751,60413.0,60412.0,0.006124]
[1720028716299,3.46549751,60413.0,60412.0,0.001124]
[1720028716900,3.47049751,60413.0,60412.0,0.002124]
[1720028717965,3.47239751,60413.0,60412.0,0.002124]
[1720028718840,3.4724908,60413.0,60412.0,0.002124]
[1720028719049,3.4725908,60413.0,60412.0,0.002124]
[1720028719251,3.4725908,60413.0,60405.0,0.009185]
[1720028719252,1.821006,60406.0,60405.0,0.009185]
[1720028719453,0.8278,60401.0,60400.0,4e-05]
[1720028719729,1.64288436,60401.0,60400.0,0.1603388]
[1720028719918,2.07400436,60401.0,60400.0,0.1603388]
[1720028720124,1.66688436,60401.0,60400.0,0.1603388]
[1720028720320,1.68536631,60401.0,60400.0,0.4172388]
[1720028720861,1.75168627,60401.0,60400.0,0.4172388]
[1720028721267,1.67558627,60401.0,60400.0,0.21193046]
[1720028721536,1.68526631,60401.0,60400.0,0.46403046]
[1720028721736,1.68516631,60401.0,60400.0,0.46403046]
[1720028721891,1.66584,60401.0,60400.0,0.46403046]
[1720028722093,1.68400836,60401.0,60400.0,0.46403046]
[1720028722316,1.61500836,60401.0,60400.0,0.46503046]
[1720028722540,1.69100519,60401.0,60400.0,0.46503046]
[1720028722727,1.69100519,60401.0,60400.0,0.1613388]
[1720028723657,1.69800519,60401.0,60400.0,0.1623388]
[1720028723826,1.68400519,60401.0,60400.0,0.1603388]
[1720028724235,1.68500519,60401.0,60400.0,0.1603388]
[1720028724396,1.68500519,60401.0,60400.0,0.1613388]
[1720028725012,1.68510519,60401.0,60400.0,0.1613388]
[1720028725213,1.68510519,60401.0,60400.0,0.1603388]
[1720028725636,1.68498194,60401.0,60400.0,0.1603388]
[1720028725886,2.03731402,60401.0,60400.0,0.1604388]
[1720028726483,2.03741402,60401.0,60400.0,0.1604388]
[1720028726651,2.41508121,60401.0,60400.0,0.1604388]
[1720028726875,2.52468121,60401.0,60400.0,0.1604388]
[1720028727067,0.0019,60399.0,60398.0,0.009185]
[1720028727273,0.0019,60399.0,60394.0,0.0199284]
[1720028727274,1.938341,60395.0,60394.0,0.0199284]
[1720028727487,3.52628713,60395.0,60394.0,0.0199284]
[1720028727827,2.5120141,60395.0,60394.0,0.0199284]
[1720028727959,2.31383634,60395.0,60394.0,0.0199284]
[1720028728160,2.59044057,60395.0,60394.0,0.0199284]